[Event "13th Chennai Open 2022"]
[Site "Chennai"]
[Date "2022.06.22"]
[Round "5.8"]
[White "Pawar, Harshit"]
[Black "Ajay Karthikeyan"]
[Result "1/2-1/2"]
[ECO "B06"]
[WhiteElo "1961"]
[BlackElo "2436"]
[Annotator "TA"]
[PlyCount "94"]
[EventDate "2022.06.19"]
[EventType "swiss"]
[EventCountry "IND"]
[SourceTitle "playchess.com"]
[Source "ChessBase"]
[SourceQuality "1"]
[TimeControl "5400+30"]

{[%evp 9,94,27,48,31,42,37,48,50,45,43,42,24,41,22,41,37,134,96,131,122,285,258,261,285,253,58,64,59,145,93,83,92,77,69,195,193,217,226,225,197,29967,281,1242,772,765,760,710,691,721,714,751,291,335,346,326,84,88,92,128,0,0,0,755,602,447,218,208,172,160,198,210,129,230,219,124,104,199,166,171,129,507,504,431,397,484,445,273]} 1. d4 {[%emt 0:00:30]} g6 {[%emt 0:00:30]} 2. e4 {[%emt 0:00:30]} Bg7 {[%emt 0:00:30]} 3. Nc3 {[%emt 0:00:30]} d6 {[%emt 0:00:30]} 4. Nf3 {[%emt 0:00:30]} a6 {[%emt 0:00:30]} 5. a4 {[%emt 0:00:30]} Bg4 {[%emt 0:00:30]} 6. Be2 {[%emt 0:00:30] B06: Modern Defence.} Nd7 {[%emt 0:00:30] has lost popularity (6...Nc6).} 7. Be3 {[%emt 0:00:30]} e5 {[%emt 0:00:30]} 8. h3 {[%emt 0:00:30] White is slightly better.} Bxf3 {[%emt 0:00:30]} 9. Bxf3 {[%emt 0:00:30]} Ne7 {[%emt 0:00:30]} 10. dxe5 {[%emt 0:00:30]} Nxe5 {[%emt 0:00:30] [#]} 11. Be2 $146 {[%emt 0:00:30]} ({Predecessor:} 11. O-O Nxf3+ 12. Qxf3 O-O 13. Rad1 Nc6 14. Qe2 f5 15. Qc4+ Kh8 16. exf5 Rxf5 17. Rd2 {½-½ (31) Lizak,J (1793)-Mroziak,M (2197) Polanica Zdroj 2012}) 11... O-O {[%emt 0:00:30]} 12. Qd2 {[%emt 0:00:30]} Kh8 {[%emt 0:00:30]} (12... Qc8 $14) 13. h4 {[%emt 0:00:30]} b5 {[%emt 0:00:30]} 14. h5 {[%emt 0:00:30]} (14. axb5 axb5 15. O-O b4 $14) 14... f5 $2 {[%emt 0:00:30]} (14... Qe8 $16) 15. Bg5 $18 {[%emt 0:00:30]} (15. axb5 axb5 16. Rxa8 Qxa8 $16) 15... Bf6 {[%emt 0:00:30]} 16. Bxf6+ {[%emt 0:00:30]} (16. axb5 axb5 17. Rxa8 Qxa8 $16) 16... Rxf6 {[%emt 0:00:30]} 17. Nd5 {[%emt 0:00:30]} (17. axb5 $6 axb5 18. Rxa8 Qxa8 $16) (17. f4 $18 Nd7 18. O-O-O (18. axb5 axb5 19. Rxa8 Qxa8 $16)) 17... Nxd5 $14 {[%emt 0:00:30]} 18. exd5 {[%emt 0:00:30]} g5 {[%emt 0:00:30]} (18... f4 $14) 19. axb5 {[%emt 0:00:30]} ({Better is} 19. Qxg5 Qe7 20. Qf4 (20. axb5 f4 $16)) 19... axb5 $16 {[%emt 0:00:30]} 20. Rxa8 {[%emt 0:00:30]} Qxa8 {[%emt 0:00:30]} 21. Qxg5 {[%emt 0:00:30]} Rf7 {[%emt 0:00:30]} (21... Rf8 $14) 22. h6 $18 {[%emt 0:00:30]} Qa5+ {[%emt 0:00:30]} 23. c3 {[%emt 0:00:30] White threatens Qd8+ and mate.} Qa1+ {[%emt 0:00:30]} 24. Bd1 {[%emt 0:00:30]} Ng6 $2 {[%emt 0:00:30]} (24... Qa8 $18 25. Bc2 f4) 25. O-O $2 {[%emt 0:00:30]} (25. Qd8+ {mates} Nf8 26. O-O Qc1 27. Bh5 Qxh6 28. Bxf7 f4 29. Re1 Kg7 30. Qxc7) 25... Qxb2 $2 {[%emt 0:00:30]} (25... Qa8 26. Bh5 Qe8) 26. Qd8+ {[%emt 0:00:30]} Rf8 {[%emt 0:00:30][%cal Bf7f8,Bf8g8,Bg8g7,Bg7a7][%mdl 32]} 27. Qxc7 {[%emt 0:00:30][%csl Gh6][%cal Rc7g7]} Rg8 {[%emt 0:00:30] Prevents Qg7+.} 28. Bh5 {[%emt 0:00:30]} Qd2 {[%emt 0:00:30]} 29. Bxg6 {[%emt 0:00:30]} hxg6 {[%emt 0:00:30][%mdl 4096] Endgame KQR-KQR} 30. h7 $2 {[%emt 0:00:30]} (30. Qxd6 {Strongly threatening Qe5+.} Qg5 31. Re1) 30... Rg7 {[%emt 0:00:30]} 31. Qxd6 {[%emt 0:00:30]} Qxc3 {[%emt 0:00:30]} 32. Qb8+ $2 {[%emt 0:00:30]} (32. Rd1 $18 {is more deadly. Black must now prevent Qd8+.} Kxh7 33. Qh2+ Kg8 34. Qb8+ Kh7 35. Qd8 (35. Qxb5 Re7 $16)) 32... Kxh7 $16 {[%emt 0:00:30]} 33. Qxb5 {[%emt 0:00:30]} (33. Rd1 {is more complex.} Qc2 34. Re1 Qd2 35. Qe5) 33... Ra7 {[%emt 0:00:30] Prevents Qa4.} 34. d6 {[%emt 0:00:30]} (34. Rd1 $16) 34... Qd4 $11 {[%emt 0:00:30]} 35. Qc6 {[%emt 0:00:30]} Qa4 $2 {[%emt 0:00:30][%mdl 8192]} (35... Ra2 $11) 36. Qd5 {[%emt 0:00:30]} Qe4 {[%emt 0:00:30]} 37. Qd2 {[%emt 0:00:30]} (37. Qxe4 $142 {[%cal Oe4e7] Qe7+! would kill now.} fxe4 38. Rd1) 37... Rd7 $18 {[%emt 0:00:30]} 38. Rd1 {[%emt 0:00:30] Threatens to win with Qc3.} Qe5 {[%emt 0:00:30] Inhibits Qc3.} 39. g3 {[%emt 0:00:30]} Kg7 {[%emt 0:00:30]} 40. Qc2 {[%emt 0:00:30]} Kf7 {[%emt 0:00:30] [#]} (40... g5 $16 41. Qc4 Kf6) 41. Qc6 $1 {[%emt 0:00:30]} Qe6 {[%emt 0:00:30]} 42. Rd4 {[%emt 0:00:30] White is more active.} Qe1+ {[%emt 0:00:30]} (42... g5 $16 {was necessary.} 43. Qf3 Kg6) 43. Kg2 {[%emt 0:00:30]} Qe6 {[%emt 0:00:30]} 44. Qc8 {[%emt 0:00:30] And now Rh4 would win.} Qe8 $2 {[%emt 0:00:30][%mdl 8192] [#]} (44... g5 $16 45. Qc3 g4) 45. Qxe8+ $1 {[%emt 0:00:30]} Kxe8 {[%emt 0:00:30]} 46. Kf3 {[%emt 0:00:30]} Kf7 {[%emt 0:00:30]} 47. Kf4 {[%emt 0:00:30] aiming for Ke5.} Kf6 {[%emt 0:00:30][%mdl 32768] Weighted Error Value: White=0.63/Black=0.82. An unexpected result.} 1/2-1/2

[Event "13th Chennai Open 2022"]
[Site "Chennai"]
[Date "2022.06.22"]
[Round "5.9"]
[White "Rajesh, V A V"]
[Black "Saravana, Krishnan P."]
[Result "1/2-1/2"]
[ECO "A01"]
[WhiteElo "2358"]
[BlackElo "2269"]
[Annotator "TA"]
[PlyCount "60"]
[EventDate "2022.06.19"]
[EventType "swiss"]
[EventCountry "IND"]
[SourceTitle "playchess.com"]
[Source "ChessBase"]
[SourceQuality "1"]
[TimeControl "5400+30"]

{[%evp 9,60,11,17,-6,-10,-17,-13,-22,-16,-22,-3,-13,0,0,0,-6,-11,-12,0,-8,0,0,0,0,0,0,0,-4,0,0,0,0,0,0,0,0,0,-14,0,7,20,12,17,-29,-27,-16,54,37,60,70,57,28,15]} 1. b3 {[%emt 0:00:05]} d5 {[%emt 0:05:16]} 2. Bb2 {[%emt 0:00:06]} Bg4 {[%emt 0:00:31]} 3. h3 {[%emt 0:03:29]} Bh5 {[%emt 0:00:44]} 4. Nf3 {[%emt 0:02:04]} Bxf3 {[%emt 0:02:59]} 5. exf3 {[%emt 0:00:30]} Nf6 6. d4 {[%emt 0:00:12] A01: Nimzowitsch-Larsen Opening.} e6 {[%emt 0:02:41]} 7. Bd3 {[%emt 0:01:08]} c5 {[%emt 0:02:05]} 8. dxc5 {[%emt 0:01:46] The position is equal.} Bxc5 {[%emt 0:00:17] [#]} 9. O-O $146 {[%emt 0:00:05]} ({Predecessor:} 9. Nc3 O-O 10. Ne2 Ba3 11. Bxa3 Qa5+ 12. c3 Qxa3 13. Qd2 Nbd7 14. O-O Rac8 15. Qe3 {½-½ (36) Owens,J (2097)-Varkentin,W (1939) ICCF email 2016}) 9... O-O {[%emt 0:07:53]} 10. f4 {[%emt 0:11:52]} Nc6 {[%emt 0:02:19]} 11. Nd2 {[%emt 0:00:19][%cal Bb1d2,Bd2f3,Bf3d4][%mdl 32]} Bd4 {[%emt 0:00:47]} 12. Bxd4 {[%emt 0:10:46]} Nxd4 {[%emt 0:01:42]} 13. c3 {[%emt 0:00:06]} Nc6 {[%emt 0:03:10]} 14. Nf3 {[%emt 0:03:02]} Rc8 {[%emt 0:02:32]} 15. Re1 {[%emt 0:04:46]} Qa5 {[%emt 0:09:58]} 16. Qd2 {[%emt 0:06:04]} Rfd8 {[%emt 0:03:22]} 17. Qb2 {[%emt 0:02:06]} Ne7 {[%emt 0:11:31]} 18. Rac1 {[%emt 0:01:18]} a6 {[%emt 0:01:57]} 19. Nd4 {[%emt 0:04:52]} Qc7 {[%emt 0:02:47]} 20. g3 {[%emt 0:00:28]} Qd6 {[%emt 0:01:44]} 21. Qe2 {[%emt 0:02:05]} Nc6 {[%emt 0:06:24]} 22. Nf3 {[%emt 0:02:13]} Rc7 {[%emt 0:03:18]} 23. Qd2 {[%emt 0:08:31]} Qf8 {[%emt 0:04:32]} 24. f5 {[%emt 0:02:05]} Qd6 {[%emt 0:04:35]} 25. fxe6 {[%emt 0:05:54]} fxe6 {[%emt 0:00:07]} 26. Qg5 {[%emt 0:09:01] Against e5} (26. Rcd1 $142) 26... h6 $11 {[%emt 0:00:31]} 27. Qe3 {[%emt 0:00:45]} Re7 {[%emt 0:02:25]} (27... e5 $1 $11 28. Bf5 (28. Nxe5 Re8 $15) 28... e4) 28. Nd4 $14 {[%emt 0:03:51]} Nxd4 {[%emt 0:07:36]} 29. cxd4 {[%emt 0:00:06]} Nd7 {[%emt 0:00:20]} 30. Bb1 {[%emt 0:06:11]} e5 {[%emt 0:02:48] Weighted Error Value: White=0.06 (flawless) /Black=0.08 (flawless)} 1/2-1/2

[Event "13th Chennai Open 2022"]
[Site "Chennai"]
[Date "2022.06.22"]
[Round "5.10"]
[White "Laxman, R.R."]
[Black "Vignesh B"]
[Result "*"]
[WhiteElo "2420"]
[BlackElo "2072"]
[Annotator "TA"]
[PlyCount "29"]
[EventDate "2022.06.19"]
[EventType "swiss"]
[EventCountry "IND"]
[SourceTitle "playchess.com"]
[Source "ChessBase"]
[SourceQuality "1"]
[TimeControl "5400+30"]

{[%evp 12,14,16,0,20]} 1. d4 {[%emt 0:00:03]} Nf6 {[%emt 0:00:06]} 2. Nf3 {[%emt 0:00:05]} e6 {[%emt 0:00:52]} 3. c4 {[%emt 0:00:08]} Bb4+ {[%emt 0:00:58]} 4. Bd2 {[%emt 0:00:07]} Bxd2+ {[%emt 0:00:37]} 5. Qxd2 {[%emt 0:00:50]} b6 {[%emt 0:00:33]} 6. Nc3 {[%emt 0:01:00]} Bb7 {[%emt 0:00:07]} 7. d5 {[%emt 0:03:24]} O-O {[%emt 0:02:24] [#] A rather calm draw. E11: Bogo-Indian.} {Predecessor:} 8. e4 $146 exd5 9. exd5 c6 10. Be2 cxd5 11. cxd5 Na6 12. O-O Nc7 13. d6 Ne6 14. Ne5 Rc8 15. h3 {1-0 (38) Ghaem Maghami,E (2525)-Toufighi,H (2436) Amol 2018} *

[Event "13th Chennai Open 2022"]
[Site "Chennai"]
[Date "2022.06.22"]
[Round "5.11"]
[White "Majumder Shrayan"]
[Black "Aronyak Ghosh"]
[Result "0-1"]
[ECO "D26"]
[WhiteElo "1741"]
[BlackElo "2494"]
[Annotator "TA"]
[PlyCount "72"]
[EventDate "2022.06.19"]
[EventType "swiss"]
[EventCountry "IND"]
[SourceTitle "playchess.com"]
[Source "ChessBase"]
[SourceQuality "1"]
[TimeControl "5400+30"]

{[%evp 11,72,39,35,-3,-12,-16,-1,0,0,14,0,-2,0,-20,-18,-28,-37,-81,-82,-69,-80,-97,-93,-89,-89,-92,-98,-100,-89,-91,-81,-77,-75,-77,-25,-128,-118,-145,-143,-132,-145,-190,-191,-193,-180,-168,-171,-208,-202,-411,-374,-374,-277,-542,-460,-445,-333,-316,-323,-325,-318,-304,-304]} 1. d4 {[%emt 0:00:04]} d5 {[%emt 0:03:29]} 2. c4 {[%emt 0:00:13]} dxc4 {[%emt 0:00:19]} 3. e3 {[%emt 0:00:43]} Nf6 {[%emt 0:00:23]} 4. Bxc4 {[%emt 0:00:11]} e6 {[%emt 0:00:25]} 5. Nf3 {[%emt 0:00:39]} c5 {[%emt 0:00:09]} 6. O-O {[%emt 0:00:27]} Nc6 {[%emt 0:00:24]} 7. b3 {[%emt 0:03:23] D26: Queen's Gambit Accepted: 4 e3 e6 5 Bxc5 c5 sidelines.} cxd4 {[%emt 0:02:32]} 8. exd4 {[%emt 0:00:07]} Be7 {[%emt 0:02:31]} 9. Bb2 {[%emt 0:01:45] The position is equal.} O-O {[%emt 0:01:09] [#]} 10. Ne5 $146 {[%emt 0:01:50]} ({Predecessor:} 10. Nc3 a6 11. Re1 b5 12. Be2 Bb7 13. a4 b4 14. Nb1 Rc8 15. Nbd2 Nd5 16. Rc1 {1-0 (46) Beckmann,D (1999)-Bauland,T (1859) Germany 2017}) 10... Bd7 {[%emt 0:04:12]} 11. Nc3 {[%emt 0:03:04]} Be8 {[%emt 0:03:30]} 12. Ne2 {[%emt 0:05:16]} Qb6 {[%emt 0:07:51]} 13. Nf4 {[%emt 0:27:54]} Rd8 {[%emt 0:04:08]} 14. Qf3 {[%emt 0:08:41]} Nxd4 {[%emt 0:02:09]} 15. Qh3 {[%emt 0:00:07]} Bb5 {[%emt 0:11:32]} 16. Rad1 {[%emt 0:13:25]} Bc5 {[%emt 0:10:35]} 17. Bxb5 {[%emt 0:12:10]} Qxb5 {[%emt 0:02:48]} 18. Ng4 {[%emt 0:09:07]} Nxg4 {[%emt 0:04:56]} (18... Ne2+ $2 19. Nxe2 Bxf2+ 20. Nxf2 $18 (20. Kxf2 Qf5+ 21. Kg1 Qxg4 $18)) 19. Qxg4 {[%emt 0:00:07]} f5 {[%emt 0:00:12]} 20. Qg5 {[%emt 0:03:50]} h6 {[%emt 0:03:38]} 21. Qg3 {[%emt 0:00:37]} Qb6 {[%emt 0:00:49]} (21... e5 $6 22. Bxd4 Rxd4 23. Ne6 $11 (23. Rxd4 Bxd4 24. Ne6 Rf7 $17)) 22. Rde1 {[%emt 0:02:15]} Rde8 {[%emt 0:04:03]} ({Reject} 22... Bd6 23. Qxg7+ Kxg7 24. Bxd4+ Qxd4 25. Nxe6+ Kf6 26. Nxd4 $11) (22... Rf6 $17) 23. Nh5 {[%emt 0:01:11]} (23. Qg6 $11) 23... Rf7 $17 {[%emt 0:00:59][%cal Oe6e5]} 24. Qe5 {[%emt 0:01:54] And now Rc1 would win.} Nc6 {[%emt 0:01:45][%cal Bd4c6,Bc6b4,Bb4a2][%mdl 32]} 25. Qg3 {[%emt 0:00:46][%cal Rh5g7]} Bd4 {[%emt 0:00:25]} 26. Bc1 {[%emt 0:00:14] [#]} Kh7 $1 {[%emt 0:01:59]} 27. Nf4 {[%emt 0:00:29] [#]} e5 $1 {[%emt 0:01:20] Active counter play!} ({Inferior is} 27... Ne5 28. Be3 $15) 28. Qg6+ {[%emt 0:00:32]} Kg8 {[%emt 0:00:05]} 29. Nh5 {[%emt 0:02:58][%cal Oh5g7] Hoping for Nxg7!} Nb4 {[%emt 0:01:03][%csl LRa2,LRg6]} 30. Qg3 {[%emt 0:00:23]} (30. Qxb6 {keeps fighting.} axb6 31. Be3) 30... Kh7 {[%emt 0:00:40]} 31. Qh3 {[%emt 0:00:36]} Nxa2 {[%emt 0:03:02]} 32. Ba3 {[%emt 0:00:41]} (32. Be3) 32... Nc3 {[%emt 0:02:49]} 33. Ng3 {[%emt 0:00:16]} Qxb3 {[%emt 0:01:23]} 34. Nxf5 {[%emt 0:00:49] Black has a decisive advantage.} Ne2+ {[%emt 0:00:23]} ({But not} 34... Qxa3 $2 35. Nxd4 Qb2 36. Nf3 $19) 35. Rxe2 {[%emt 0:00:11]} Qxh3 {[%emt 0:00:04][%mdl 64] Remove Defender. Dancing on a razor blade.} 36. gxh3 {[%emt 0:00:06]} Rxf5 {[%emt 0:00:02] Weighted Error Value: White=0.31/Black=0.13 (very precise)} 0-1

[Event "13th Chennai Open 2022"]
[Site "Chennai"]
[Date "2022.06.22"]
[Round "5.12"]
[White "Nguyen, Duc Hoa"]
[Black "Jani Kushal R"]
[Result "1-0"]
[ECO "A64"]
[WhiteElo "2398"]
[BlackElo "1800"]
[Annotator "TA"]
[PlyCount "81"]
[EventDate "2022.06.19"]
[EventType "swiss"]
[EventCountry "IND"]
[SourceTitle "playchess.com"]
[Source "ChessBase"]
[SourceQuality "1"]
[TimeControl "5400+30"]

{[%evp 23,81,0,0,-2,62,77,80,68,74,80,77,62,77,72,79,68,153,125,203,212,200,196,159,129,267,291,280,274,330,356,397,385,461,402,422,418,370,219,216,200,398,412,395,379,422,425,564,545,585,579,585,589,634,612,815,810,1067,1062,949,922]} 1. d4 {[%emt 0:00:03]} Nf6 {[%emt 0:00:24]} 2. c4 {[%emt 0:00:05]} g6 {[%emt 0:00:06]} 3. Nc3 {[%emt 0:00:10]} Bg7 {[%emt 0:00:05]} 4. Nf3 {[%emt 0:00:43]} O-O {[%emt 0:00:08]} 5. g3 {[%emt 0:00:03]} d6 {[%emt 0:00:15]} 6. Bg2 {[%emt 0:00:04]} c5 {[%emt 0:00:32]} 7. d5 {[%emt 0:03:46]} e6 {[%emt 0:01:31]} 8. O-O {[%emt 0:00:09]} exd5 {[%emt 0:00:04]} 9. cxd5 {[%emt 0:00:08]} Re8 {[%emt 0:01:11]} 10. Nd2 {[%emt 0:01:10]} a6 {[%emt 0:00:55]} 11. a4 {[%emt 0:00:07][%cal Ba2a4,Ba4a5][%mdl 32]} Nbd7 {[%emt 0:00:32]} 12. h3 {[%emt 0:01:49]} Rb8 {[%emt 0:03:55]} 13. Nc4 {[%emt 0:00:36] A64: Modern Benoni: Fianchetto Variation: 9...Nbd7 10 Nd2 a6 11 a4 Re8.} Qc7 {[%emt 0:02:26]} (13... Ne5 $11 14. Na3 b5 15. axb5 axb5 16. Naxb5 Qb6) 14. Bf4 $14 {[%emt 0:01:33] [#]} Ne5 $146 {[%emt 0:00:49]} ({Predecessor:} 14... Bf8 15. Na3 Ne5 16. Bd2 Bg7 17. f4 Ned7 18. e4 c4 19. Be3 Nxe4 20. Nxe4 f5 {0-1 (41) Stupak,K (2520)-Gumularz,S (2513) Chess.com INT 2020}) 15. Bxe5 {[%emt 0:00:32] White is better.} dxe5 {[%emt 0:00:10] [#]} 16. a5 $1 {[%emt 0:01:03]} e4 {[%emt 0:01:40]} 17. Qb3 {[%emt 0:09:28]} Bd7 {[%emt 0:12:11][%cal Oe4e3]} 18. Rfd1 {[%emt 0:05:16]} h5 {[%emt 0:06:53]} 19. e3 {[%emt 0:05:07]} h4 {[%emt 0:03:38] [#]} (19... Rbd8 $14) 20. g4 $1 $16 {[%emt 0:01:24]} (20. gxh4 $6 Bf5 $14) 20... Nxg4 {[%emt 0:07:15]} 21. hxg4 {[%emt 0:04:44]} Bxg4 {[%emt 0:00:11]} 22. d6 {[%emt 0:00:17]} (22. Nxe4 $6 h3 $14) 22... Qd8 {[%emt 0:03:11]} 23. d7 {[%emt 0:01:43]} (23. Nxe4 h3 24. d7 Re7) 23... Rf8 {[%emt 0:01:39] Black cannot hold the game after this.} (23... Re7 $16) 24. Nxe4 $18 {[%emt 0:00:46]} h3 {[%emt 0:02:35] [#]} 25. Bh1 {[%emt 0:00:32]} Qh4 {[%emt 0:01:33] [#]} (25... Qe7 26. Nb6) 26. Kh2 $1 {[%emt 0:13:07]} Be6 {[%emt 0:05:38]} (26... Qe7 27. Qb6) 27. f4 {[%emt 0:06:55]} Rfd8 {[%emt 0:05:18]} 28. Qc2 {[%emt 0:05:33]} Rxd7 {[%emt 0:04:11]} 29. Rxd7 {[%emt 0:00:41]} Bxd7 {[%emt 0:00:06]} 30. Qf2 {[%emt 0:00:53]} (30. Ng5 $142) 30... Qxf2+ {[%emt 0:01:33]} 31. Nxf2 {[%emt 0:00:48] Pair of Knights!} Re8 $2 {[%emt 0:03:26]} (31... Be6) 32. Bxb7 {[%emt 0:01:59]} Bb5 {[%emt 0:01:28]} 33. Nd6 {[%emt 0:01:08]} Rb8 {[%emt 0:00:37]} 34. Bd5 {[%emt 0:00:56] White is clearly winning.} Rd8 {[%emt 0:02:35]} 35. Bxf7+ {[%emt 0:00:31]} Kf8 {[%emt 0:00:19]} 36. Nfe4 {[%emt 0:00:39]} Bd3 {[%emt 0:01:09]} 37. Bc4 {[%emt 0:00:31]} Bxb2 {[%emt 0:01:00]} 38. Ra2 {[%emt 0:00:40]} Bxc4 {[%emt 0:00:42]} 39. Nxc4 {[%emt 0:00:12]} Bc1 {[%emt 0:00:30]} 40. Rc2 {[%emt 0:00:20]} Rd1 {[%emt 0:00:07]} 41. Nxc5 {[%emt 0:00:35] Weighted Error Value: White=0.11 (very precise) /Black=0.46} 1-0

[Event "13th Chennai Open 2022"]
[Site "Chennai"]
[Date "2022.06.22"]
[Round "5.13"]
[White "Nawin M S"]
[Black "Harsh Suresh"]
[Result "0-1"]
[ECO "B06"]
[WhiteElo "1714"]
[BlackElo "2392"]
[Annotator "TA"]
[PlyCount "142"]
[EventDate "2022.06.19"]
[EventType "swiss"]
[EventCountry "IND"]
[SourceTitle "playchess.com"]
[Source "ChessBase"]
[SourceQuality "1"]
[TimeControl "5400+30"]

{[%evp 9,141,68,62,41,32,10,12,-13,-13,-13,-13,-13,-13,-20,-13,-13,-13,-11,-6,-7,-4,-20,-18,-25,-7,-7,-7,-9,-18,-23,-22,-20,-16,-22,-18,-18,-11,-12,0,0,0,-67,-33,-32,-41,-47,-41,-41,0,0,0,0,31,0,0,0,15,14,21,0,0,0,0,0,0,0,0,-10,0,-189,-166,-160,-148,-170,-180,-140,-171,-151,0,0,0,0,0,-50,-33,-504,-445,-1279,-1316,-1239,-1143,-1995,-1885,-2438,-2201,-29979,-29982,-29982,-29983,-29983,-29984,-29984,-29985,-29985,-29986,-29986,-29987,-29987,-29988,-29988,-29989,-29989,-29990,-29990,-29991,-29992,-29993,-29993,-29994,-29994,-29995,-29997,-29997,-29997,-29998,-29998,-29995,-29995,-29996,-29996,-29997,-29998,-29999,-29999]} 1. e4 {[%emt 0:00:10]} g6 {[%emt 0:00:01]} 2. d4 {[%emt 0:02:07]} Nf6 {[%emt 0:00:02]} 3. Nc3 {[%emt 0:01:20]} d5 {[%emt 0:00:09]} 4. e5 {[%emt 0:10:50]} Ne4 {[%emt 0:00:02]} 5. Nxe4 {[%emt 0:02:43]} dxe4 {[%emt 0:00:02]} 6. Be3 {[%emt 0:01:46] B06: Modern Defence.} Bg7 {[%emt 0:01:43][%cal Oc7c5]} 7. Ne2 {[%emt 0:01:37] [#]} O-O $146 {[%emt 0:01:00][%cal Oc7c5]} ({Predecessor:} 7... c5 8. dxc5 Qa5+ 9. c3 Bxe5 10. b4 Qc7 11. Nd4 O-O 12. Bc4 Nc6 13. Qc2 Bxd4 14. Bxd4 {1-0 (65) Ter Sahakyan,S (2640)-Indjic,A (2607) Chess.com INT 2021}) 8. Nc3 {[%emt 0:08:43] The position is equal.} c5 $1 {[%emt 0:00:11]} 9. Nxe4 {[%emt 0:05:00]} cxd4 {[%emt 0:00:02]} 10. Qxd4 {[%emt 0:00:58]} Qxd4 {[%emt 0:01:32]} 11. Bxd4 {[%emt 0:00:02]} Nc6 {[%emt 0:00:01][%csl LRd4,LRe5]} 12. Bc3 {[%emt 0:00:57]} Nxe5 {[%emt 0:07:29]} 13. O-O-O {[%emt 0:08:08]} Bf5 {[%emt 0:01:33]} 14. Ng3 {[%emt 0:04:37]} Be6 {[%emt 0:00:03]} 15. Be2 {[%emt 0:04:44]} Rac8 {[%emt 0:38:50]} 16. f4 {[%emt 0:04:33]} Ng4 {[%emt 0:02:02]} 17. Bxg4 {[%emt 0:03:47]} Bxg4 {[%emt 0:00:19]} 18. Bxg7 {[%emt 0:00:06]} Kxg7 {[%emt 0:00:10]} 19. Rde1 {[%emt 0:03:21]} Rc7 {[%emt 0:00:47]} 20. Rhf1 {[%emt 0:03:16]} Rfc8 {[%emt 0:02:12]} 21. c3 {[%emt 0:00:57]} Be6 {[%emt 0:11:37]} 22. a3 {[%emt 0:01:11]} Bd5 {[%emt 0:00:18]} 23. Rf2 {[%emt 0:03:16]} e6 {[%emt 0:00:54]} 24. Rd1 {[%emt 0:01:29]} h5 {[%emt 0:01:45][%cal Bh7h5,Bh5h4][%mdl 32]} 25. f5 {[%emt 0:06:54]} (25. Nf1 $11) 25... h4 {[%emt 0:01:33]} ({But not} 25... gxf5 {[#]} 26. Nxf5+ $1 Kg6 27. Rd3 $11) 26. f6+ {[%emt 0:00:18]} Kh6 {[%emt 0:05:22]} 27. Nf1 {[%emt 0:00:59]} Kg5 {[%emt 0:08:41]} 28. Re1 {[%emt 0:07:35]} Rc4 {[%emt 0:16:10]} 29. Re5+ {[%emt 0:01:10]} Kh6 {[%emt 0:00:00]} 30. Ne3 {[%emt 0:00:53]} Re4 {[%emt 0:00:00]} (30... Rd4 $5) 31. Rxe4 {[%emt 0:01:30]} (31. g3 {feels hotter.} Rc5 32. Rxe4 Bxe4 33. Rf4) 31... Bxe4 $14 {[%emt 0:00:00][%mdl 4096] Endgame KRB-KRN} 32. Rf4 {[%emt 0:00:19][%csl LRe4,LRh4]} Bf5 {[%emt 0:00:00]} 33. Rxh4+ {[%emt 0:03:12]} Kg5 {[%emt 0:00:00]} 34. Rd4 {[%emt 0:01:38]} Kxf6 {[%emt 0:00:00]} 35. g4 {[%emt 0:01:51]} e5 {[%emt 0:00:00]} 36. Rb4 {[%emt 0:00:24]} Be6 {[%emt 0:00:00]} 37. Rxb7 {[%emt 0:00:30]} Rh8 {[%emt 0:00:00]} 38. Rxa7 {[%emt 0:02:32]} Rxh2 {[%emt 0:00:00] And now ...Re2 would win.} 39. Rb7 $2 {[%emt 0:01:38]} (39. Ra4 $11 {and White is okay.}) 39... Re2 $19 {[%emt 0:00:00][%mdl 64] [#] Deflection} 40. Nc2 {[%emt 0:00:22]} Bxg4 {[%emt 0:00:00] Black is more active.} 41. a4 {[%emt 0:00:25]} Bf3 {[%emt 0:00:00]} 42. Rd7 {[%emt 0:01:17]} Rh2 {[%emt 0:00:00] aiming for ...Rh1+.} 43. Ne3 {[%emt 0:00:38]} g5 $2 {[%emt 0:00:00]} ({Black should try} 43... Ke6 $17 44. Ra7 Re2 45. Ra6+ Ke7 46. Ra7+ Kf6 47. Ra6+ Kg5) 44. Rd6+ $11 {[%emt 0:01:08]} Kg7 {[%emt 0:01:34]} 45. a5 {[%emt 0:00:53]} Rh1+ {[%emt 0:02:19]} 46. Kc2 {[%emt 0:00:18]} (46. Kd2 $1 $11) 46... g4 {[%emt 0:00:55][%cal Bg5g4,Bg4g3][%mdl 32] Hoping for ...Be4+.} 47. b4 $2 {[%emt 0:00:39][%mdl 8192] This move loses the game for White.} (47. Nf5+ $15 Kh7 48. Rf6) 47... Be4+ $19 {[%emt 0:00:19]} 48. Kb2 {[%emt 0:00:48]} (48. Kd2 $142 g3 49. Rd7) 48... g3 {[%emt 0:00:10] Threatens to win with ...Re1.} 49. Rd2 {[%emt 0:00:28]} f5 {[%emt 0:00:58][%cal Bf7f5,Bf5f4][%mdl 32]} 50. a6 {[%emt 0:00:51]} f4 {[%emt 0:00:30]} 51. Ng4 {[%emt 0:00:32]} f3 {[%emt 0:02:07]} 52. Ne3 {[%emt 0:00:37]} g2 {[%emt 0:01:06] Black mates.} 53. Nxg2 {[%emt 0:00:18]} fxg2 {[%emt 0:00:02]} 54. Rxg2+ {[%emt 0:00:30]} Bxg2 {[%emt 0:00:02]} 55. c4 {[%emt 0:00:12]} Bf1 {[%emt 0:01:04]} 56. a7 {[%emt 0:00:25]} Rh8 {[%emt 0:02:54]} 57. b5 {[%emt 0:00:19]} Bxc4 {[%emt 0:00:00]} 58. b6 {[%emt 0:00:02]} Bd5 {[%emt 0:00:00]} 59. Kc3 {[%emt 0:00:05]} Kf6 {[%emt 0:00:00]} 60. Kd2 {[%emt 0:00:05]} e4 {[%emt 0:00:00]} 61. Ke3 {[%emt 0:00:03]} Ke5 {[%emt 0:00:00]} 62. Ke2 {[%emt 0:00:05]} Kd4 {[%emt 0:00:00]} 63. b7 {[%emt 0:00:11]} Bxb7 {[%emt 0:00:00]} 64. a8=Q {[%emt 0:00:07]} Rxa8 {[%emt 0:00:00]} 65. Ke1 {[%emt 0:00:02]} Ra2 {[%emt 0:00:00]} 66. Kf1 {[%emt 0:00:05]} e3 {[%emt 0:00:00]} 67. Kg1 {[%emt 0:00:02]} Ra1+ {[%emt 0:00:00]} 68. Kh2 {[%emt 0:00:04]} e2 {[%emt 0:00:00]} 69. Kh3 {[%emt 0:00:03]} Rg1 {[%emt 0:00:00]} 70. Kh2 {[%emt 0:00:06]} e1=Q {[%emt 0:00:00][%csl Gg1][%cal Re1g3]} 71. Kh3 {[%emt 0:00:04]} Qg3# {[%emt 0:00:00] Weighted Error Value: White=0.59/Black=0.07 (flawless)} 0-1